fUSD/lending_fUSD_20260414
["ID","MTS","AMOUNT","RATE_DAILY","PERIOD"]
[420497102,1776162652701,-1575.0,0.00014447,2]
[420497103,1776162652713,-162.0,0.00014447,2]
[420497104,1776162652732,-150.0,0.00014454,2]
[420497105,1776162652742,-8005.27511473,0.00014456,2]
[420497106,1776162652754,-150.0,0.00014472,2]
[420497107,1776162652787,-280.61648322,0.00014479,2]
[420497108,1776162652797,-993.25358027,0.00014488,2]
[420497109,1776162652833,-151.0,0.00014497,2]
[420497110,1776162652843,-150.0,0.00014498,2]
[420497111,1776162652862,-1362.9744,0.00014499,2]
[420497112,1776162652878,-187.22979871,0.000145,4]
[420497113,1776162652892,-5600.0,0.000145,5]
[420497114,1776162652914,-682.01,0.00014504,2]
[420497115,1776162652928,-1575.0,0.00014514,2]
[420497116,1776162652938,-233.56650957,0.0001452,2]
[420497117,1776162652949,-872.38,0.00014521,2]
[420497118,1776162652963,-150.0,0.00014523,2]
[420497119,1776162652977,-150.0,0.00014523,2]
[420497120,1776162652995,-150.0,0.00014523,2]
[420497121,1776162653006,-150.0,0.00014523,2]
[420497122,1776162653016,-168.0,0.00014532,2]
[420497123,1776162653039,-1357.602435,0.00014535,2]
[420497124,1776162653049,-2200.747704,0.00014535,2]
[420497125,1776162653062,-356.078142,0.00014535,2]
[420497126,1776162653080,-150.0,0.00014549,2]
[420497127,1776162653098,-5698.0,0.00014552,2]
[420497128,1776162653117,-500.0,0.00014559,2]
[420497129,1776162653141,-500.0,0.00014559,2]
[420497130,1776162653175,-500.0,0.00014559,2]
[420497131,1776162653185,-500.0,0.00014559,2]
[420497132,1776162653211,-500.0,0.00014559,2]
[420497133,1776162653222,-355.38698992,0.00014559,2]
[420497134,1776162653232,-500.0,0.00014559,2]
[420497135,1776162653243,-500.0,0.00014559,2]
[420497136,1776162653260,-500.0,0.00014559,2]
[420497137,1776162653279,-797.0,0.00014564,2]
[420497138,1776162653289,-150.0,0.00014574,2]
[420497139,1776162653305,-150.0,0.00014593,2]
[420497140,1776162653316,-1600.0,0.00014593,2]
[420497141,1776162653326,-643.44,0.00014598,2]
[420497142,1776162653342,-500.0,0.00014598,2]
[420497143,1776162653359,-500.0,0.00014598,2]
[420497144,1776162653369,-150.0,0.000146,2]
[420497145,1776162653380,-7000.0,0.000146,5]
[420497146,1776162653391,-150.0,0.00014608,2]
[420497147,1776162653408,-150.0,0.00014608,2]
[420497148,1776162653419,-507.0,0.00014608,2]
[420497149,1776162653431,-2000.0,0.00014609,2]
[420497150,1776162653455,-1575.0,0.0001462,2]
[420497151,1776162653465,-150.0,0.00014625,2]
[420497152,1776162653492,-150.0,0.00014632,2]
[420497153,1776162653510,-747.8093786,0.00014639,2]
[420497154,1776162653526,-1712.93078312,0.0001464,2]
[420497155,1776162653550,-8005.27511473,0.00014642,2]
[420497156,1776162653560,-150.0,0.00014651,2]
[420497157,1776162653570,-986.73,0.00014658,2]
[420497158,1776162653589,-500.0,0.00014659,2]
[420497159,1776162653601,-2815.0,0.0001466,2]
[420497160,1776162653614,-162.0,0.0001466,2]
[420497161,1776162653631,-2815.0,0.0001466,2]
[420497162,1776162653641,-2815.0,0.0001466,2]
[420497163,1776162653653,-2815.0,0.0001466,2]
[420497164,1776162653669,-1575.0,0.0001466,2]
[420497165,1776162653679,-1575.0,0.0001466,2]
[420497166,1776162653689,-1575.0,0.0001466,2]
[420497167,1776162653702,-2815.0,0.0001466,2]
[420497168,1776162653720,-350.0,0.0001466,2]
[420497169,1776162653730,-993.25358027,0.00014666,2]
[420497170,1776162653740,-150.0,0.00014676,2]
[420497171,1776162653774,-183.02,0.00014683,2]
[420497172,1776162653787,-1362.97439,0.00014699,2]
[420497173,1776162653810,-1400.0,0.000147,5]
[420497174,1776162653820,-150.0,0.00014702,2]
[420497175,1776162653840,-522.0,0.0001472,2]
[420497176,1776162653861,-150.0,0.00014724,2]
[420497177,1776162653879,-180.640694,0.00014725,2]
[420497178,1776162653897,-150.0,0.00014727,2]
[420497179,1776162653912,-150.0,0.00014732,2]
[420497180,1776162653926,-150.0,0.00014742,2]
[420497181,1776162653950,-150.0,0.00014753,2]
[420497182,1776162653984,-150.0,0.00014778,2]
[420497183,1776162653994,-150.0,0.00014778,2]
[420497184,1776162654025,-150.0,0.00014778,2]
[420497185,1776162654048,-150.0,0.00014778,2]
[420497186,1776162654059,-150.0,0.00014778,2]
[420497187,1776162654076,-150.0,0.00014778,2]
[420497188,1776162654108,-350.0,0.00014793,2]
[420497189,1776162654119,-250.0,0.00014795,2]
[420497190,1776162654145,-331.3,0.00014795,2]
[420497191,1776162654156,-378.18939022,0.00014795,2]
[420497192,1776162654170,-1400.0,0.000148,5]
[420497193,1776162654188,-225.18697532,0.00014803,2]
[420497194,1776162654199,-150.0,0.00014804,2]
[420497195,1776162654226,-152.0,0.0001482,2]
[420497196,1776162654236,-167.0,0.0001482,2]
[420497197,1776162654257,-167.23340418,0.0001482,2]
[420497198,1776162654270,-8005.27511473,0.00014828,2]
[420497199,1776162654281,-150.0,0.00014829,2]
[420497200,1776162654305,-168.0,0.0001483,2]
[420497201,1776162654318,-162.0,0.00014834,2]
[420497202,1776162654335,-993.25358027,0.00014844,2]
[420497203,1776162654352,-6814.0,0.00014849,2]
[420497204,1776162654365,-173.0,0.0001485,2]
[420497205,1776162654382,-343.0,0.0001485,2]
[420497206,1776162654413,-150.0,0.00014851,2]
[420497207,1776162654424,-150.0,0.00014855,2]
[420497208,1776162654446,-150.0,0.00014871,2]
[420497209,1776162654469,-150.0,0.0001488,2]
[420497210,1776162654482,-163.0,0.00014892,2]
[420497211,1776162654518,-1400.0,0.000149,5]
[420497212,1776162654534,-150.0,0.00014905,2]
[420497213,1776162654545,-250.0,0.00014905,2]
[420497214,1776162654572,-250.0,0.00014905,2]
[420497215,1776162654587,-250.0,0.00014905,2]
[420497216,1776162654599,-250.0,0.00014905,2]
[420497217,1776162654627,-250.0,0.00014905,2]
[420497218,1776162654638,-250.0,0.00014905,2]
[420497219,1776162654654,-250.0,0.00014905,2]
[420497220,1776162654664,-250.0,0.00014905,2]
[420497221,1776162654674,-214.0,0.00014905,2]
[420497222,1776162654688,-200.0,0.00014905,2]
[420497223,1776162654698,-200.0,0.00014905,2]
[420497224,1776162654708,-200.0,0.00014905,2]
[420497225,1776162654727,-200.0,0.00014905,2]
[420497226,1776162654737,-200.0,0.00014905,2]
[420497227,1776162654753,-200.0,0.00014905,2]
[420497228,1776162654766,-200.0,0.00014905,2]
[420497229,1776162654783,-248.0,0.00014905,2]
[420497230,1776162654793,-1264.0,0.00014907,2]
[420497231,1776162654803,-926.0,0.00014907,2]
[420497232,1776162654817,-1218.0,0.00014907,2]
[420497233,1776162654830,-1348.0,0.00014907,2]
[420497234,1776162654850,-622.0,0.00014907,2]
[420497235,1776162654860,-1500.0,0.00014915,2]
[420497236,1776162654871,-1597.911462,0.00014915,2]
[420497237,1776162654890,-150.0,0.00014931,2]
[420497238,1776162654899,-974.53,0.00014932,2]
[420497239,1776162654909,-150.0,0.00014948,2]
[420497240,1776162654929,-150.0,0.00014948,2]
[420497241,1776162654941,-1552.68003403,0.0001495,2]
[420497242,1776162654951,-350.0,0.00014956,2]
[420497243,1776162654970,-150.0,0.00014956,2]
[420497244,1776162654983,-150.0,0.0001496,2]
[420497245,1776162654995,-2815.0,0.0001498,2]
[420497246,1776162655009,-1575.0,0.0001498,2]
[420497247,1776162655024,-1575.0,0.0001498,2]
[420497248,1776162655035,-2815.0,0.0001498,2]
[420497249,1776162655060,-2815.0,0.0001498,2]
[420497250,1776162655069,-1575.0,0.0001498,2]
[420497251,1776162655081,-162.0,0.0001498,2]
[420497252,1776162655096,-150.0,0.00014982,2]
[420497253,1776162655115,-503.0,0.00014986,2]
[420497254,1776162655125,-9183.02421792,0.00014994,2]
[420497255,1776162655150,-151.0,0.00014994,2]
[420497256,1776162655162,-8056.33827374,0.00015,2]
[420497257,1776162655185,-1103.71831888,0.00015,2]
[420497258,1776162655196,-4201.75169718,0.00015,2]
[420497259,1776162655210,-500.0,0.00015,2]
[420497260,1776162655244,-9965.73889273,0.00015,7]
[420497261,1776162655254,-165.535,0.00015,2]
[420497262,1776162655264,-2069.40678864,0.00015,2]
[420497263,1776162655277,-10205.33149394,0.00015,7]
[420497264,1776162655289,-426.38862269,0.00015,2]
[420497265,1776162655299,-300.0,0.00015,2]
[420497266,1776162655308,-151.0,0.00015,2]
[420497267,1776162655320,-673.32,0.00015,2]
[420497268,1776162655331,-1728.92264373,0.00015,2]
[420497269,1776162655341,-1047.0,0.00015001,2]
[420497270,1776162655351,-5698.0,0.00015007,2]
[420497271,1776162655364,-150.0,0.00015007,2]
[420497272,1776162655375,-150.0,0.0001501,2]
[420497273,1776162655390,-8005.27511473,0.00015014,2]
[420497274,1776162655400,-150.0,0.00015022,2]
[420497275,1776162655413,-150.0,0.00015022,2]
[420497276,1776162655426,-150.0,0.00015022,2]
[420497277,1776162655437,-150.0,0.00015022,2]
[420497278,1776162655447,-150.0,0.00015022,2]
[420497279,1776162655464,-195.0,0.00015022,2]
[420497280,1776162655489,-993.25358027,0.00015022,2]
[420497281,1776162655500,-150.0,0.00015033,2]
[420497282,1776162655509,-150.0,0.00015033,2]
[420497283,1776162655524,-150.0,0.00015058,2]
[420497284,1776162655556,-150.0,0.00015058,2]
[420497285,1776162655565,-150.0,0.00015058,2]
[420497286,1776162655592,-150.0,0.00015058,2]
[420497287,1776162655615,-150.0,0.00015058,2]
[420497288,1776162655625,-150.0,0.00015058,2]
[420497289,1776162655639,-269.0,0.00015058,2]
[420497290,1776162655658,-168.0,0.00015063,2]
[420497291,1776162655675,-492.0,0.00015068,2]
[420497292,1776162655718,-813.17,0.00015068,2]
[420497293,1776162655737,-2062.57,0.00015068,2]
[420497294,1776162655808,-1007.895544,0.00015068,2]
[420497295,1776162655840,-1007.895544,0.00015068,2]
[420497296,1776162655862,-1007.895544,0.00015068,2]
[420497297,1776162655875,-1007.895544,0.00015068,2]
[420497298,1776162655892,-150.0,0.00015069,2]
[420497299,1776162655903,-150.0,0.00015084,2]
[420497300,1776162655917,-500.0,0.00015099,2]
[420497301,1776162655931,-500.0,0.00015099,2]
[420497302,1776162655944,-500.0,0.00015099,2]
[420497303,1776162655957,-500.0,0.00015099,2]
[420497304,1776162655985,-500.0,0.00015099,2]
[420497305,1776162655994,-500.0,0.00015099,2]
[420497306,1776162656018,-500.0,0.00015099,2]
[420497307,1776162656029,-510.47625396,0.00015099,2]
[420497308,1776162656039,-1529.0,0.000151,2]
[420497309,1776162656078,-200.0,0.000151,2]
[420497310,1776162656108,-200.0,0.000151,2]
[420497311,1776162656145,-200.0,0.000151,2]
[420497312,1776162656184,-200.0,0.000151,2]
[420497313,1776162656213,-200.0,0.000151,2]
[420497314,1776162656234,-200.0,0.000151,2]
[420497315,1776162656253,-200.0,0.000151,2]
[420497316,1776162656282,-200.0,0.000151,2]
[420497317,1776162656294,-330.0,0.000151,2]
[420497318,1776162656307,-1007.895544,0.000151,2]
[420497319,1776162656324,-1007.895544,0.000151,2]
[420497320,1776162656336,-1007.895544,0.000151,2]
[420497321,1776162656349,-1007.895544,0.000151,2]
[420497322,1776162656363,-2000.0,0.000151,2]
[420497323,1776162656374,-150.0,0.00015109,2]
[420497324,1776162656387,-150.0,0.00015118,2]
[420497325,1776162656397,-150.0,0.00015118,2]
[420497326,1776162656410,-150.0,0.00015135,2]
[420497327,1776162656421,-150.0,0.00015149,2]
[420497328,1776162656436,-150.0,0.0001516,2]
[420497329,1776162656446,-150.0,0.00015178,2]
[420497330,1776162656578,-150.0,0.00015186,2]
[420497331,1776162656589,-1776.30922209,0.00015188,2]
[420497332,1776162656618,-151.0,0.00015197,2]
[420497333,1776162656628,-682.01,0.00015199,2]
[420497334,1776162656638,-643.44,0.00015199,2]
[420497335,1776162656665,-500.0,0.00015199,2]
[420497336,1776162656674,-500.0,0.00015199,2]
[420497337,1776162656685,-233.56650957,0.000152,2]
[420497338,1776162656706,-993.25358027,0.000152,2]
[420497339,1776162656716,-8005.27511473,0.000152,2]
[420497340,1776162656727,-2351.0727676,0.000152,2]
[420497341,1776162656757,-2341.02494016,0.000152,2]
[420497342,1776162656766,-1258.4351053,0.000152,2]
[420497343,1776162656781,-12186.03501436,0.000152,2]
[420497344,1776162656803,-45532.73163387,0.000152,2]
[420497345,1776162656812,-232.84683208,0.000152,3]
[420497346,1776162656822,-2000.0,0.000152,2]
[420497347,1776162656842,-4395.70714925,0.000152,2]
[420497348,1776162656852,-2914.97201502,0.000152,2]
[420497349,1776162656862,-174.81035114,0.00015209,2]
[420497350,1776162656876,-150.0,0.00015211,2]
[420497351,1776162656896,-4629.2170595,0.00015212,2]
[420497352,1776162656909,-150.0,0.00015237,2]
[420497353,1776162656919,-1573.0,0.00015255,2]
[420497354,1776162656929,-7461.0,0.0001526,2]
[420497355,1776162656947,-150.0,0.00015262,2]
[420497356,1776162656956,-500.0,0.00015272,2]
[420497357,1776162656966,-500.0,0.00015273,2]
[420497358,1776162656996,-500.0,0.00015273,2]
[420497359,1776162657017,-500.0,0.00015273,2]
[420497360,1776162657030,-500.83400253,0.00015273,2]
[420497361,1776162657059,-500.0,0.00015273,2]
[420497362,1776162657076,-500.0,0.00015273,2]
[420497363,1776162657092,-500.43744085,0.00015273,2]
[420497364,1776162657102,-500.0,0.00015273,2]
[420497365,1776162657111,-500.0,0.00015273,2]
[420497366,1776162657140,-500.0,0.00015273,2]
[420497367,1776162657149,-500.0,0.00015273,2]
[420497368,1776162657165,-500.0,0.00015273,2]
[420497369,1776162657179,-500.0,0.00015273,2]
[420497370,1776162657188,-500.0,0.00015273,2]
[420497371,1776162657199,-500.0,0.00015273,2]
[420497372,1776162657211,-500.78234559,0.00015273,2]
[420497373,1776162657222,-500.0,0.00015273,2]
[420497374,1776162657234,-500.0,0.00015273,2]
[420497375,1776162657255,-386.94679678,0.00015273,2]
[420497376,1776162657264,-268.74006057,0.00015273,2]
[420497377,1776162657288,-500.0,0.00015273,2]
[420497378,1776162657297,-500.21996369,0.00015273,2]
[420497379,1776162657315,-500.0,0.00015273,2]
[420497380,1776162657324,-500.0,0.00015273,2]
[420497381,1776162657342,-500.0,0.00015273,2]
[420497382,1776162657352,-500.0,0.00015273,2]
[420497383,1776162657361,-500.0,0.00015273,2]
[420497384,1776162657380,-150.0,0.00015288,2]
[420497385,1776162657390,-150.0,0.00015288,2]
[420497386,1776162657405,-150.0,0.00015288,2]
[420497387,1776162657414,-150.0,0.00015288,2]
[420497388,1776162657424,-150.0,0.00015288,2]
[420497389,1776162657433,-150.0,0.00015288,2]
[420497390,1776162657446,-150.0,0.00015288,2]
[420497391,1776162657461,-150.0,0.00015288,2]
[420497392,1776162657471,-150.0,0.00015288,2]
[420497393,1776162657481,-150.0,0.00015288,2]
[420497394,1776162657492,-150.0,0.00015288,2]
[420497395,1776162657505,-150.0,0.00015288,2]
[420497396,1776162657515,-1041.5372909,0.0001529,2]
[420497397,1776162657529,-1041.5372909,0.0001529,2]
[420497398,1776162657540,-1041.5372909,0.0001529,2]
[420497399,1776162657555,-151.0,0.00015297,2]
[420497400,1776162657565,-1135.78187532,0.00015299,5]
[420497401,1776162657578,-1094.27129325,0.00015299,5]
[420497402,1776162657600,-500.0,0.00015299,2]
[420497403,1776162657613,-500.0,0.00015299,2]
[420497404,1776162657637,-500.0,0.00015299,2]
[420497405,1776162657647,-500.0,0.00015299,2]
[420497406,1776162657673,-500.0,0.00015299,2]
[420497407,1776162657704,-625.94919754,0.00015299,2]
[420497408,1776162657755,-500.0,0.00015299,2]
[420497409,1776162657766,-500.0,0.00015299,2]
[420497410,1776162657776,-500.0,0.00015299,2]
[420497411,1776162657791,-500.0,0.00015299,2]
[420497412,1776162657813,-630.09957652,0.00015299,2]
[420497413,1776162657823,-666.0,0.00015299,2]
[420497414,1776162657845,-300.0,0.00015299,2]
[420497415,1776162657854,-682.01,0.00015299,2]
[420497416,1776162657864,-682.01,0.00015299,2]
[420497417,1776162657880,-682.01,0.00015299,2]
[420497418,1776162657899,-500.0,0.00015299,2]
[420497419,1776162657908,-682.01,0.00015299,2]
[420497420,1776162657917,-500.0,0.00015299,2]
[420497421,1776162657932,-682.01,0.00015299,2]
[420497422,1776162657946,-500.0,0.00015299,2]
[420497423,1776162657955,-682.01,0.00015299,2]
[420497424,1776162657964,-500.0,0.00015299,2]
[420497425,1776162657987,-682.01,0.00015299,2]
[420497426,1776162657997,-500.0,0.00015299,2]
[420497427,1776162658022,-682.01,0.00015299,2]
[420497428,1776162658033,-500.0,0.00015299,2]
[420497429,1776162658042,-682.01,0.00015299,2]
[420497430,1776162658073,-500.0,0.00015299,2]
[420497431,1776162658110,-682.01,0.00015299,2]
[420497432,1776162658138,-500.0,0.00015299,2]
[420497433,1776162658160,-682.01,0.00015299,2]
[420497434,1776162658170,-682.01,0.00015299,2]
[420497435,1776162658192,-500.0,0.00015299,2]
[420497436,1776162658202,-682.01,0.00015299,2]
[420497437,1776162658213,-500.0,0.00015299,2]
[420497438,1776162658232,-682.01,0.00015299,2]
[420497439,1776162658242,-500.0,0.00015299,2]
[420497440,1776162658253,-682.01,0.00015299,2]
[420497441,1776162658267,-500.0,0.00015299,2]
[420497442,1776162658286,-682.01,0.00015299,2]
[420497443,1776162658310,-682.01,0.00015299,2]
[420497444,1776162658323,-682.01,0.00015299,2]
[420497445,1776162658337,-682.01,0.00015299,2]
[420497446,1776162658354,-682.11987293,0.00015299,2]
[420497447,1776162658368,-500.0,0.00015299,2]
[420497448,1776162658381,-500.0,0.00015299,2]
[420497449,1776162658403,-500.0,0.00015299,2]
[420497450,1776162658431,-500.0,0.00015299,2]
[420497451,1776162658441,-500.0,0.00015299,2]
[420497452,1776162658450,-500.0,0.00015299,2]
[420497453,1776162658470,-500.0,0.00015299,2]
[420497454,1776162658485,-542.56869768,0.00015299,2]
[420497455,1776162658495,-500.0,0.00015299,2]
[420497456,1776162658506,-500.0,0.00015299,2]
[420497457,1776162658526,-500.0,0.00015299,2]
[420497458,1776162658537,-551.16718507,0.00015299,2]
[420497459,1776162658547,-500.0,0.00015299,2]
[420497460,1776162658558,-500.0,0.00015299,2]
[420497461,1776162658581,-500.0,0.00015299,2]
[420497462,1776162658591,-500.0,0.00015299,2]
[420497463,1776162658601,-500.0,0.00015299,2]
[420497464,1776162658616,-500.0,0.00015299,2]
[420497465,1776162658625,-500.0,0.00015299,2]
[420497466,1776162658635,-500.0,0.00015299,2]
[420497467,1776162658646,-500.0,0.00015299,2]
[420497468,1776162658658,-500.0,0.00015299,2]
[420497469,1776162658673,-473.63606507,0.00015299,2]
[420497470,1776162658683,-300.0,0.00015299,2]
[420497471,1776162658693,-300.0,0.00015299,2]
[420497472,1776162658703,-666.0,0.00015299,2]
[420497473,1776162658715,-151.0,0.00015299,2]
[420497474,1776162658726,-300.0,0.00015299,2]
[420497475,1776162658736,-500.0,0.00015299,2]
[420497476,1776162658748,-500.0,0.00015299,2]
[420497477,1776162658759,-458.14710892,0.00015299,2]
[420497478,1776162658768,-150.0,0.00015299,2]
[420497479,1776162658778,-643.44,0.00015299,2]
[420497480,1776162658792,-643.44,0.00015299,2]
[420497481,1776162658802,-643.44,0.00015299,2]
[420497482,1776162658819,-643.44,0.00015299,2]
[420497483,1776162658828,-643.44,0.00015299,2]
[420497484,1776162658838,-643.44,0.00015299,2]
[420497485,1776162658848,-643.44,0.00015299,2]
[420497486,1776162658859,-643.44,0.00015299,2]
[420497487,1776162658869,-643.44,0.00015299,2]
[420497488,1776162658881,-643.44,0.00015299,2]
[420497489,1776162658890,-643.44,0.00015299,2]
[420497490,1776162658902,-643.44,0.00015299,2]
[420497491,1776162658913,-643.44,0.00015299,2]
[420497492,1776162658926,-643.44,0.00015299,2]
[420497493,1776162658935,-643.44,0.00015299,2]
[420497494,1776162658959,-643.44,0.00015299,2]
[420497495,1776162658976,-643.44,0.00015299,2]
[420497496,1776162658995,-643.44,0.00015299,2]
[420497497,1776162659033,-643.44,0.00015299,2]
[420497498,1776162659057,-643.56051944,0.00015299,2]
[420497499,1776162659073,-500.0,0.00015299,2]
[420497500,1776162659082,-500.0,0.00015299,2]
[420497501,1776162659117,-500.0,0.00015299,2]
[420497502,1776162659127,-500.0,0.00015299,2]
[420497503,1776162659146,-500.0,0.00015299,2]
[420497504,1776162659162,-500.0,0.00015299,2]
[420497505,1776162659172,-500.0,0.00015299,2]
[420497506,1776162659201,-500.0,0.00015299,2]
[420497507,1776162659210,-500.0,0.00015299,2]
[420497508,1776162659220,-529.98307748,0.00015299,2]
[420497509,1776162659246,-500.0,0.00015299,2]
[420497510,1776162659259,-500.0,0.00015299,2]
[420497511,1776162659288,-500.0,0.00015299,2]
[420497512,1776162659299,-500.0,0.00015299,2]
[420497513,1776162659312,-178.91537091,0.00015299,2]
[420497514,1776162659338,-666.0,0.00015299,2]
[420497515,1776162659351,-500.0,0.00015299,2]
[420497516,1776162659372,-500.0,0.00015299,2]
[420497517,1776162659387,-500.0,0.00015299,2]
[420497518,1776162659413,-500.0,0.00015299,2]
[420497519,1776162659442,-500.0,0.00015299,2]
[420497520,1776162659454,-500.0,0.00015299,2]
[420497521,1776162659473,-500.0,0.00015299,2]
[420497522,1776162659489,-500.0,0.00015299,2]
[420497523,1776162659505,-500.0,0.00015299,2]
[420497524,1776162659522,-500.0,0.00015299,2]
[420497525,1776162659537,-500.0,0.00015299,2]
[420497526,1776162659549,-500.0,0.00015299,2]
[420497527,1776162659566,-500.0,0.00015299,2]
[420497528,1776162659580,-500.0,0.00015299,2]
[420497529,1776162659592,-500.0,0.00015299,2]
[420497530,1776162659609,-500.0,0.00015299,2]
[420497531,1776162659659,-500.0,0.00015299,2]
[420497532,1776162659689,-500.0,0.00015299,2]
[420497533,1776162659698,-300.0,0.00015299,2]
[420497534,1776162659721,-300.0,0.00015299,2]
[420497535,1776162659732,-666.0,0.00015299,2]
[420497536,1776162659741,-151.0,0.00015299,2]
[420497537,1776162659755,-300.0,0.00015299,2]
[420497538,1776162659774,-112433.24213044,0.000153,2]
[420497539,1776162660890,-1165.00275632,0.000153,2]
[420497540,1776162660905,-35068.7024931,0.000153,2]
[420497541,1776162660917,-444.58999998,0.000153,2]
[420497542,1776162660942,-543108.79950046,0.000153,2]
[420497543,1776162660976,-410952.95127043,0.000153,2]
[420497609,1776163831881,-970.31793558,0.00011,2]
[420497611,1776163832072,-29.68206442,0.00011,2]
[420497612,1776163832084,-592.25817771,0.00011369,2]
[420497613,1776163832103,-1447.62182229,0.00011369,2]
[420497614,1776163832121,-160.0,0.00011409,2]
[420497615,1776163832135,-195.0,0.00011463,2]
[420497616,1776163832153,-195.0,0.0001148,2]
[420497617,1776163832174,-195.0,0.0001148,2]
[420497618,1776163832184,-195.0,0.0001148,2]
[420497619,1776163832225,-600.0,0.00011482,2]
[420497620,1776163832259,-150.0,0.00011484,2]
[420497621,1776163832298,-250.0,0.00011492,2]
[420497622,1776163832319,-600.0,0.00011499,2]
[420497623,1776163832351,-600.0,0.00011507,2]
[420497625,1776163832361,-1600.0,0.00011583,2]
[420497628,1776163832394,-186.06,0.00011685,2]
[420497630,1776163832404,-300.0,0.00011791,2]
[420497632,1776163832423,-2178.45900538,0.00011793,2]
[420497635,1776163832474,-609.8984744,0.00011793,2]
[420497638,1776163832509,-250.7070206,0.00011793,2]
[420497645,1776163838134,-485.89064866,0.00011793,2]
[420497646,1776163838231,-355.710055,0.00011793,2]
[420497657,1776163840138,-288.37479596,0.00011793,2]
[420497660,1776163840181,-151.0,0.00011793,2]
[420497663,1776163840203,-151.0,0.00011793,2]
[420497666,1776163840270,-151.0,0.00011793,2]
[420497669,1776163840329,-151.0,0.00011793,2]
[420497672,1776163840394,-151.0,0.00011793,2]
[420497674,1776163840442,-151.0,0.00011793,2]
[420497676,1776163840465,-151.0,0.00011793,2]
[420497678,1776163840476,-151.0,0.00011793,2]
[420497680,1776163840503,-151.0,0.00011793,2]
[420497682,1776163840514,-151.0,0.00011793,2]
[420497684,1776163840528,-151.0,0.00011793,2]
[420497686,1776163840548,-150.0,0.00011798,2]
[420497688,1776163840559,-500.0,0.00011799,2]
[420497690,1776163840576,-252.06364172,0.00011799,2]
[420497693,1776163840598,-247.93635828,0.00011799,2]
[420497694,1776163840613,-261.71926795,0.00011799,2]
[420497695,1776163840638,-238.28073205,0.00011799,2]
[420497696,1776163840660,-256.10255276,0.00011799,2]
[420497697,1776163840671,-28.53995589,0.00011799,2]
[420497698,1776163840690,-331.79488458,0.00011799,2]
[420497699,1776163840726,-139.66515953,0.00011799,2]
[420497700,1776163840736,-162.25681206,0.00011799,2]
[420497701,1776163840754,-337.74318794,0.00011799,2]
[420497702,1776163840771,-500.0,0.00011799,2]
[420497703,1776163840789,-206.00983801,0.00011799,2]
[420497704,1776163840805,-285.98407295,0.00011799,2]
[420497705,1776163840820,-500.0,0.00011873,2]
[420497706,1776163840831,-150.0,0.000121,2]
[420497707,1776163840844,-1994.0576011,0.00012341,2]
[420497708,1776163840859,-1532.9423989,0.00012341,2]
[420497709,1776163840879,-1047.0,0.00012341,2]
[420497710,1776163840891,-1348.0,0.00012341,2]
[420497711,1776163840901,-1264.0,0.00012341,2]
[420497712,1776163840929,-150.0,0.00012341,2]
[420497713,1776163840943,-1218.0,0.00012341,2]